bitfinex/quotes_SOLUSD_20240606
["timestamp","ask_amount","ask_price","bid_price","bid_amount"]
[1717682832211,5.95,172.93,172.87,5.78]
[1717682832520,45.0,172.92,172.87,5.78]
[1717682836623,45.0,172.92,172.86,125.78]
[1717682837208,45.0,172.92,172.87,5.78]
[1717682837720,36.8793,172.95,172.88,120.0]
[1717682838020,45.17,172.94,172.88,120.0]
[1717682838219,2.1391,172.97,172.89,5.78]
[1717682838426,34.74,172.98,172.9,145.78]
[1717682838615,5.78,172.97,172.9,125.78]
[1717682840303,45.0,172.96,172.9,125.78]
[1717682840814,7.9189,172.98,172.91,5.78]
[1717682841131,5.78,172.97,172.91,5.78]
[1717682841432,5.78,172.96,172.9,125.78]
[1717682842206,5.78,172.96,172.85,41.9504]
[1717682842207,5.78,172.95,172.88,120.0]
[1717682842500,5.78,172.93,172.89,20.0]
[1717682842702,5.78,172.93,172.85,6.573]
[1717682842703,5.78,172.9,172.85,6.573]
[1717682843427,5.78,172.91,172.85,12.353]
[1717682844431,5.78,172.89,172.86,20.0]
[1717682844630,5.78,172.89,172.81,126.1409]
[1717682844836,5.78,172.87,172.81,125.78]
[1717682845027,45.0,172.86,172.81,5.78]
[1717682845936,45.0,172.86,172.8,5.78]
[1717682846427,45.0,172.86,172.78,120.0]
[1717682846635,5.78,172.84,172.78,120.0]
[1717682846850,5.78,172.84,172.79,20.0]
[1717682847014,45.0,172.86,172.79,5.78]
[1717682847208,50.78,172.86,172.8,120.0]
[1717682847631,50.78,172.86,172.8,125.78]
[1717682848017,45.0,172.86,172.81,5.78]
[1717682848530,5.78,172.88,172.82,125.78]
[1717682848707,45.0,172.87,172.83,5.78]
[1717682848909,45.0,172.88,172.83,5.78]
[1717682849719,45.0,172.88,172.84,5.78]
[1717682849924,45.0,172.89,172.84,5.78]
[1717682850107,5.78,172.91,172.84,125.78]
[1717682850811,0.34,172.92,172.85,5.78]
[1717682851025,5.95,172.91,172.85,5.78]
[1717682851230,1.41973552,172.9,172.82,120.0]
[1717682851410,9.33963552,172.9,172.83,25.78]
[1717682851622,45.0,172.89,172.83,25.78]
[1717682853634,45.0,172.89,172.83,145.78]
[1717682855343,45.0,172.89,172.83,25.78]
[1717682855641,45.0,172.89,172.83,145.78]
[1717682856753,45.0,172.89,172.84,5.78]
[1717682858147,45.0,172.89,172.83,140.0]
[1717682858148,50.78,172.89,172.83,20.0]
[1717682858319,50.78,172.89,172.83,25.78]
[1717682858519,50.78,172.89,172.83,20.0]
[1717682858719,45.0,172.89,172.84,5.78]
[1717682859116,50.78,172.9,172.84,5.78]
[1717682859543,50.78,172.9,172.83,145.78]
[1717682859837,45.0,172.9,172.85,5.78]
[1717682860440,50.78,172.9,172.83,140.0]
[1717682860621,50.78,172.9,172.84,5.78]
[1717682864535,5.78,172.89,172.83,145.78]
[1717682866253,2.3097,172.92,172.83,145.78]
[1717682866461,5.78,172.9,172.84,5.78]
[1717682866747,5.78,172.9,172.85,120.0]
[1717682867145,5.78,172.91,172.85,120.0]
[1717682869054,7.19973552,172.91,172.84,5.78]
[1717682869251,5.78,172.9,172.84,5.78]
[1717682870949,45.0,172.92,172.85,120.0]
[1717682871138,5.78,172.91,172.85,120.0]
[1717682873056,47.1397,172.92,172.85,120.0]
[1717682873356,5.78,172.9,172.85,120.0]
[1717682873858,5.78,172.91,172.85,120.0]
[1717682874447,5.78,172.9,172.85,120.0]
[1717682877666,45.0,172.92,172.85,120.0]
[1717682877865,5.78,172.9,172.85,120.0]
[1717682879769,45.0,172.92,172.85,120.0]
[1717682879973,5.78,172.91,172.85,125.78]
[1717682883472,45.0,172.92,172.85,125.78]
[1717682883654,5.78,172.91,172.85,125.78]
[1717682885087,45.0,172.9,172.85,125.78]
[1717682886477,45.0,172.9,172.83,120.0]
[1717682886665,45.0,172.9,172.84,20.0]
[1717682886973,50.78,172.9,172.84,25.78]
[1717682887759,5.95,172.89,172.84,20.0]
[1717682887953,45.0,172.88,172.84,20.0]
[1717682891476,45.0,172.89,172.84,20.0]
[1717682894679,45.0,172.89,172.83,125.78]
[1717682895601,7.19973552,172.88,172.82,125.78]
[1717682895806,45.0,172.87,172.83,20.0]
[1717682897597,45.0,172.87,172.77,10.71290638]
[1717682897598,45.0,172.87,172.8,120.0]
[1717682897787,5.78,172.85,172.8,120.0]
[1717682898114,50.78,172.84,172.8,120.0]
[1717682898883,5.78,172.83,172.8,120.0]
[1717682899097,45.0,172.82,172.8,120.0]
[1717682900204,45.0,172.83,172.8,120.0]
[1717682906207,45.0,172.83,172.77,5.78]
[1717682906506,50.78,172.83,172.78,20.0]
[1717682906705,5.78,172.82,172.78,20.0]
[1717682906914,45.0,172.81,172.78,20.0]
[1717682907084,50.78,172.83,172.77,20.0]
[1717682909097,50.78,172.83,172.78,120.0]
[1717682909685,45.0,172.83,172.78,125.78]
[1717682910085,45.0,172.83,172.79,5.78]
[1717682910606,45.0,172.82,172.79,5.78]
[1717682910785,45.17,172.84,172.79,5.78]
[1717682910984,0.17,172.84,172.79,5.78]
[1717682911207,45.0,172.83,172.79,5.78]
[1717682911395,45.0,172.85,172.79,5.78]
[1717682911886,45.0,172.85,172.8,125.78]
[1717682914393,45.17,172.86,172.8,125.78]
[1717682914794,45.17,172.86,172.81,5.78]
[1717682916214,45.0,172.86,172.82,125.78]
[1717682916714,45.0,172.87,172.82,125.78]
[1717682917111,45.0,172.88,172.82,125.78]
[1717682922118,45.0,172.88,172.84,120.0]
[1717682923901,50.78,172.88,172.84,120.0]
[1717682925422,45.0,172.88,172.84,120.0]
[1717682925629,50.78,172.88,172.84,120.0]
[1717682926429,45.0,172.88,172.84,120.0]
[1717682929013,45.0,172.88,172.82,120.0]
[1717682929212,45.0,172.88,172.82,125.78]
[1717682929621,50.78,172.88,172.82,125.78]
[1717682930338,50.78,172.88,172.82,120.0]
[1717682930710,50.78,172.88,172.82,125.78]
[1717682931037,45.0,172.88,172.82,125.78]
[1717682932034,45.0,172.88,172.83,5.78]
[1717682932236,45.0,172.88,172.84,125.78]
[1717682933744,45.0,172.89,172.84,125.78]
[1717682938318,45.0,172.89,172.84,120.0]
[1717682939244,45.0,172.89,172.84,125.78]
[1717682940823,45.0,172.89,172.84,120.0]
[1717682941024,45.0,172.89,172.84,125.78]
[1717682942423,5.78,172.88,172.81,120.0]
[1717682942628,50.78,172.87,172.82,20.0]
[1717682943730,5.95,172.86,172.82,20.0]
[1717682943930,45.0,172.85,172.8,25.78]
[1717682944345,45.0,172.85,172.8,20.0]
[1717682944526,45.0,172.85,172.81,120.0]
[1717682944724,45.0,172.85,172.82,20.0]
[1717682946655,45.0,172.85,172.83,120.0]
[1717682947551,45.0,172.85,172.82,5.78]
[1717682947849,50.78,172.85,172.8,120.0]
[1717682948057,50.78,172.85,172.8,125.78]
[1717682948626,50.78,172.85,172.8,120.0]
[1717682949538,5.78,172.84,172.78,125.78]
[1717682949748,50.78,172.83,172.78,120.0]
[1717682949931,5.78,172.83,172.78,120.0]
[1717682950133,45.0,172.82,172.78,120.0]
[1717682950357,5.78,172.81,172.76,120.0]
[1717682950681,50.78,172.8,172.74,120.0]
[1717682950856,45.17,172.8,172.74,120.0]
[1717682951149,5.78,172.78,172.72,120.0]
[1717682951355,45.0,172.77,172.72,120.0]
[1717682951527,45.0,172.77,172.72,125.78]
[1717682951730,45.0,172.77,172.73,20.0]
[1717682952648,50.78,172.77,172.72,120.0]
[1717682952867,5.78,172.76,172.72,120.0]
[1717682953030,45.0,172.75,172.72,120.0]
[1717682954039,45.0,172.75,172.7,120.0]
[1717682954238,45.0,172.75,172.7,125.78]
[1717682954645,45.0,172.75,172.7,120.0]
[1717682954646,50.78,172.75,172.7,120.0]
[1717682955040,45.0,172.75,172.7,120.0]
[1717682957549,5.78,172.74,172.68,125.78]
[1717682957854,45.0,172.73,172.68,125.78]
[1717682958761,45.0,172.73,172.68,120.0]
[1717682959259,45.0,172.73,172.68,125.78]
[1717682959445,45.0,172.73,172.7,120.0]
[1717682960060,50.78,172.74,172.68,125.78]
[1717682960759,50.78,172.74,172.68,120.0]
[1717682961065,50.78,172.74,172.68,125.78]
[1717682961438,45.0,172.74,172.7,120.0]
[1717682962071,50.78,172.75,172.7,120.0]
[1717682962579,5.78,172.74,172.7,120.0]
[1717682962774,45.0,172.73,172.7,120.0]
[1717682963082,6.2322,172.81,172.74,120.0]
[1717682963290,12.0122,172.81,172.75,5.78]
[1717682963579,12.0122,172.81,172.74,120.0]
[1717682963580,12.0122,172.81,172.74,125.78]
[1717682964375,5.78,172.81,172.75,5.78]
[1717682964582,45.0,172.8,172.75,5.78]
[1717682964785,6.2706,172.85,172.78,120.0]
[1717682964786,5.78,172.83,172.78,120.0]
[1717682964951,8.4112,172.85,172.78,120.0]
[1717682965150,6.2706,172.85,172.78,125.78]
[1717682965358,12.0506,172.85,172.78,125.78]
[1717682965979,2.1403,172.87,172.8,120.0]
[1717682966190,5.78,172.85,172.8,120.0]
[1717682966851,5.78,172.86,172.8,120.0]
[1717682967281,8.2216,172.89,172.82,120.0]
[1717682967495,5.78,172.88,172.82,125.78]
[1717682967952,11.8615,172.89,172.82,125.78]
[1717682968149,5.78,172.89,172.82,125.78]
[1717682968352,5.78,172.9,172.84,120.0]
[1717682970867,52.217,172.92,172.84,120.0]
[1717682971068,5.78,172.9,172.84,120.0]
[1717682971269,45.0,172.89,172.84,120.0]
[1717682972168,50.78,172.89,172.84,120.0]
[1717682972484,5.78,172.88,172.84,120.0]
[1717682972676,45.0,172.87,172.84,120.0]
[1717682974795,45.0,172.88,172.84,120.0]
[1717682975590,50.78,172.88,172.84,120.0]
[1717682976088,50.78,172.88,172.82,120.0]
[1717682976593,50.78,172.88,172.82,125.78]
[1717682978759,50.78,172.88,172.82,120.0]
[1717682979370,45.0,172.88,172.82,120.0]
[1717682979571,5.78,172.85,172.8,120.0]
[1717682979899,45.0,172.84,172.78,11.564]
[1717682980192,5.78,172.84,172.78,11.564]
[1717682980498,45.0,172.83,172.78,11.564]
[1717682981192,45.0,172.83,172.78,131.564]
[1717682981361,45.0,172.83,172.79,20.0]
[1717682983802,45.0,172.83,172.8,120.0]
[1717682984109,5.78,172.87,172.82,120.0]
[1717682984272,45.0,172.86,172.82,120.0]
[1717682985000,45.0,172.86,172.82,125.78]
[1717682988100,50.78,172.87,172.82,120.0]
[1717682988293,5.78,172.86,172.8,120.0]
[1717682988621,45.0,172.85,172.8,120.0]
[1717682989605,50.78,172.85,172.8,120.0]
[1717682991490,45.0,172.85,172.82,120.0]
[1717682993209,45.0,172.85,172.8,125.78]
[1717682993906,50.78,172.85,172.8,125.78]
[1717682994113,50.78,172.85,172.8,120.0]
[1717682994281,50.78,172.85,172.79,25.78]
[1717682994482,50.78,172.85,172.79,20.0]
[1717682994683,5.78,172.84,172.78,120.0]
[1717682994882,45.0,172.83,172.78,125.78]
[1717682997492,45.0,172.83,172.77,120.0]
[1717682997812,50.78,172.83,172.78,20.0]
[1717682999108,5.78,172.82,172.77,120.0]
[1717682999418,45.0,172.81,172.77,120.0]
[1717683000407,50.78,172.81,172.75,120.0]
[1717683000708,50.78,172.81,172.72,6.4287]
[1717683000709,5.78,172.8,172.76,120.0]
[1717683001012,45.0,172.79,172.76,120.0]
[1717683001898,45.0,172.8,172.76,120.0]
[1717683002102,45.0,172.8,172.76,125.78]
[1717683002400,50.78,172.81,172.76,120.0]
[1717683003407,50.78,172.81,172.78,120.0]
[1717683003408,45.0,172.81,172.78,120.0]
[1717683003610,45.0,172.82,172.78,120.0]
[1717683003788,45.0,172.82,172.78,125.78]
[1717683003990,45.0,172.83,172.78,125.78]
[1717683004299,45.0,172.83,172.8,120.0]
[1717683004614,6.4577,172.86,172.8,125.78]
[1717683004795,5.78,172.87,172.82,120.0]
[1717683004995,16.5929,172.88,172.82,120.0]
[1717683005196,5.78,172.87,172.82,120.0]
[1717683006303,5.78,172.88,172.82,125.78]
[1717683007007,8.6385,172.9,172.82,125.78]
[1717683007211,5.78,172.88,172.82,125.78]
[1717683007516,45.0,172.87,172.82,125.78]
[1717683008091,45.0,172.87,172.84,120.0]
[1717683008291,45.0,172.88,172.84,120.0]
[1717683009599,45.0,172.88,172.84,125.78]
[1717683009815,45.0,172.89,172.84,125.78]
[1717683010115,5.78,172.91,172.86,120.0]
[1717683011389,5.78,172.88,172.84,120.0]
[1717683011619,45.0,172.87,172.84,120.0]
[1717683013011,5.78,172.93,172.88,120.0]
[1717683013317,5.78,172.94,172.88,125.78]
[1717683014314,45.0,172.93,172.88,120.0]
[1717683014615,50.78,172.93,172.88,120.0]
[1717683014806,45.0,172.93,172.88,120.0]
[1717683015005,5.78,172.92,172.86,125.78]
[1717683015203,45.0,172.91,172.86,125.78]
[1717683015414,5.78,172.9,172.84,120.0]
[1717683015604,52.19973552,172.89,172.82,125.78]
[1717683015808,50.78,172.89,172.83,20.0]
[1717683016025,5.78,172.88,172.83,20.0]
[1717683016227,45.0,172.87,172.83,20.0]
[1717683019713,45.0,172.87,172.8,120.0]
[1717683019920,5.78,172.85,172.79,5.78]
[1717683020221,45.0,172.84,172.8,120.0]
[1717683020625,45.0,172.85,172.8,120.0]
[1717683020831,45.0,172.85,172.8,5.78]
[1717683021216,45.0,172.85,172.79,5.78]
[1717683021414,45.0,172.85,172.8,20.0]
[1717683021724,45.0,172.85,172.8,140.0]
[1717683021903,45.0,172.85,172.8,145.78]
[1717683022423,45.0,172.86,172.8,145.78]
[1717683024128,50.78,172.86,172.8,145.78]
[1717683024931,5.78,172.85,172.8,140.0]
[1717683025134,45.0,172.84,172.8,140.0]
[1717683025514,45.0,172.85,172.8,140.0]
[1717683026034,45.0,172.85,172.8,145.78]
[1717683026214,45.0,172.85,172.81,5.78]
[1717683026415,45.0,172.86,172.81,5.78]
[1717683028227,50.78,172.86,172.8,145.78]
[1717683030124,45.0,172.86,172.81,5.78]
[1717683030828,45.0,172.86,172.82,125.78]
[1717683031924,45.0,172.86,172.82,120.0]
[1717683032125,45.0,172.87,172.82,120.0]
[1717683032328,50.78,172.87,172.82,120.0]
[1717683032533,45.0,172.87,172.82,120.0]
[1717683032714,50.78,172.87,172.82,120.0]
[1717683034833,50.78,172.87,172.8,140.0]
[1717683035042,7.19973552,172.86,172.8,145.78]
[1717683035234,45.0,172.85,172.8,145.78]
[1717683035431,45.0,172.85,172.8,25.78]
[1717683035939,45.0,172.85,172.8,145.78]
[1717683036140,50.78,172.85,172.8,20.0]
[1717683037350,1.41973552,172.84,172.8,20.0]
[1717683037722,50.78,172.85,172.8,20.0]
[1717683039354,1.41973552,172.84,172.8,20.0]
[1717683039923,50.78,172.85,172.8,20.0]
[1717683040418,1.41973552,172.84,172.8,20.0]
[1717683040834,7.19973552,172.84,172.76,120.0]
[1717683041146,50.95,172.83,172.76,125.78]
[1717683041726,50.95,172.83,172.78,120.0]
[1717683041941,50.95,172.83,172.76,125.78]
[1717683042138,50.95,172.83,172.77,5.78]
[1717683042535,50.95,172.83,172.78,120.0]
[1717683042740,50.78,172.83,172.78,120.0]
[1717683043446,50.78,172.83,172.77,5.78]
[1717683045255,50.78,172.83,172.76,125.78]
[1717683045746,7.53973552,172.82,172.76,120.0]
[1717683045950,45.0,172.81,172.76,120.0]
[1717683047930,45.34,172.82,172.76,125.78]
[1717683048742,51.12,172.82,172.76,125.78]
[1717683049757,5.78,172.81,172.76,120.0]
[1717683049938,45.0,172.8,172.76,120.0]
[1717683051450,45.0,172.81,172.76,120.0]
[1717683056456,45.0,172.81,172.76,125.78]
[1717683056665,45.0,172.81,172.77,5.78]
[1717683056951,45.34,172.82,172.77,5.78]
[1717683057160,45.34,172.82,172.76,125.78]
[1717683057657,45.0,172.82,172.78,120.0]
[1717683058536,5.78,172.8,172.74,125.78]
[1717683058836,45.0,172.79,172.75,20.0]
[1717683060557,45.0,172.79,172.75,25.78]
[1717683061243,45.0,172.79,172.76,120.0]
[1717683062855,2.1406,172.85,172.78,120.0]
[1717683063156,6.12,172.84,172.78,120.0]
[1717683063356,45.0,172.83,172.78,120.0]
[1717683064468,5.78,172.82,172.76,125.78]
[1717683064764,45.0,172.81,172.76,125.78]
[1717683065070,45.0,172.81,172.76,120.0]
[1717683065750,45.0,172.81,172.76,125.78]
[1717683066653,45.0,172.81,172.77,5.78]
[1717683066851,45.0,172.82,172.77,5.78]
[1717683067162,5.78,172.83,172.78,120.0]
[1717683067366,5.78,172.84,172.78,120.0]
[1717683067660,5.78,172.83,172.78,120.0]
[1717683067855,2.1407,172.84,172.76,120.0]
[1717683068061,5.78,172.82,172.76,125.78]
[1717683068762,45.0,172.81,172.76,125.78]
[1717683069349,45.0,172.82,172.76,125.78]
[1717683069954,45.0,172.82,172.77,5.78]
[1717683070165,45.0,172.82,172.76,125.78]
[1717683071458,45.0,172.82,172.78,120.0]
[1717683072362,45.0,172.83,172.78,120.0]
[1717683073462,45.0,172.83,172.8,120.0]
[1717683075164,2.1404,172.86,172.8,120.0]
[1717683075165,45.0,172.84,172.8,120.0]
[1717683076278,45.0,172.84,172.78,125.78]
[1717683076883,50.78,172.84,172.78,125.78]
[1717683077371,50.78,172.84,172.78,120.0]
[1717683078080,45.0,172.84,172.78,120.0]
[1717683078270,50.78,172.84,172.78,125.78]
[1717683078659,45.0,172.84,172.78,125.78]
[1717683080871,50.78,172.84,172.76,120.0]
[1717683081084,5.95,172.83,172.77,25.78]
[1717683081283,45.0,172.82,172.77,25.78]
[1717683081485,0.17,172.83,172.77,25.78]
[1717683081681,5.95,172.83,172.78,120.0]
[1717683081871,45.0,172.82,172.78,120.0]
[1717683082072,50.78,172.84,172.78,120.0]
[1717683082781,50.78,172.84,172.78,125.78]
[1717683083281,50.78,172.84,172.78,120.0]
[1717683083465,5.78,172.83,172.78,120.0]
[1717683083670,45.0,172.82,172.78,120.0]
[1717683085087,5.78,172.8,172.75,120.0]
[1717683085288,50.78,172.79,172.73,120.0]
[1717683085579,5.78,172.77,172.71,125.78]
[1717683085780,5.78,172.77,172.72,20.0]
[1717683085985,45.0,172.76,172.71,125.78]
[1717683086663,45.0,172.76,172.7,120.0]
[1717683086972,50.78,172.76,172.7,5.78]
[1717683087566,45.0,172.76,172.71,125.78]
[1717683087983,45.0,172.76,172.72,5.78]
[1717683088184,45.0,172.77,172.72,5.78]
[1717683089680,45.0,172.77,172.71,125.78]
[1717683089890,45.0,172.77,172.71,120.0]
[1717683090085,1.41973552,172.76,172.69,120.0]
[1717683090288,1.41973552,172.76,172.7,20.0]
[1717683090472,5.78,172.75,172.68,120.0]
[1717683090789,45.0,172.74,172.69,5.78]
[1717683091194,50.78,172.74,172.68,120.0]
[1717683091487,50.78,172.74,172.66,6.0075]
[1717683091679,50.78,172.74,172.67,120.0]
[1717683091890,50.78,172.74,172.67,125.78]
[1717683092187,50.78,172.74,172.68,5.78]
[1717683092375,50.78,172.74,172.69,125.78]
[1717683092572,45.0,172.74,172.69,125.78]
[1717683093267,5.78,172.76,172.69,125.78]
[1717683093268,45.0,172.75,172.69,125.78]
[1717683093594,45.0,172.75,172.71,125.78]
[1717683093796,45.0,172.75,172.72,5.78]
[1717683095472,45.0,172.75,172.71,125.78]
[1717683096592,45.0,172.75,172.71,120.0]
[1717683097093,45.0,172.75,172.71,125.78]
[1717683097595,5.78,172.78,172.73,120.0]
[1717683097792,45.0,172.77,172.73,125.78]
[1717683098486,45.0,172.77,172.74,5.78]
[1717683098681,6.6007,172.81,172.75,125.78]
[1717683098992,5.78,172.83,172.77,125.78]
[1717683099201,5.78,172.84,172.78,5.78]
[1717683100200,8.3773,172.85,172.78,5.78]
[1717683100389,5.78,172.84,172.79,120.0]
[1717683100592,6.2367,172.85,172.79,125.78]
[1717683100785,7.9205,172.86,172.79,125.78]
[1717683101799,2.3105,172.85,172.79,125.78]
[1717683102186,47.3105,172.85,172.79,125.78]
[1717683102576,53.0905,172.85,172.79,125.78]
[1717683102799,50.95,172.85,172.79,125.78]
[1717683103503,53.0906,172.85,172.79,125.78]
[1717683105406,3.56043552,172.84,172.77,120.0]
[1717683105608,5.78,172.83,172.78,5.78]
[1717683105781,45.0,172.82,172.78,5.78]
[1717683105981,50.78,172.82,172.75,120.0]
[1717683106290,5.78,172.82,172.76,5.78]
[1717683106493,45.0,172.81,172.76,5.78]
[1717683106899,45.0,172.81,172.75,120.0]
[1717683107200,5.78,172.8,172.74,5.78]
[1717683107393,50.78,172.79,172.71,120.0]
[1717683107707,46.41973552,172.78,172.71,120.0]
[1717683107880,46.41973552,172.78,172.72,5.78]
[1717683108283,45.0,172.78,172.72,5.78]
[1717683108501,45.0,172.78,172.73,5.78]
[1717683109710,1.41973552,172.77,172.73,5.78]
[1717683110108,45.0,172.78,172.74,5.78]
[1717683110489,45.0,172.78,172.73,125.78]
[1717683110690,45.0,172.79,172.73,125.78]
[1717683112005,45.0,172.79,172.73,120.0]
[1717683112200,50.78,172.79,172.73,125.78]
[1717683112512,1.41973552,172.78,172.73,125.78]
[1717683112692,50.78,172.79,172.73,125.78]
[1717683113608,1.41973552,172.78,172.73,5.78]
[1717683113785,50.78,172.79,172.73,5.78]
[1717683114709,50.78,172.79,172.73,125.78]
[1717683115511,50.78,172.79,172.73,120.0]
[1717683115693,50.78,172.79,172.72,5.78]
[1717683115893,50.78,172.79,172.73,5.78]
[1717683117104,50.78,172.79,172.73,125.78]
[1717683118509,45.0,172.79,172.74,5.78]
[1717683120711,45.17,172.8,172.74,5.78]
[1717683121007,0.17,172.79,172.74,5.78]
[1717683123202,45.0,172.8,172.75,120.0]
[1717683123398,36.8306,172.85,172.77,125.78]
[1717683123705,36.8306,172.85,172.79,5.78]
[1717683123706,7.9206,172.85,172.79,5.78]
[1717683123903,2.1406,172.85,172.79,5.78]
[1717683124109,7.9206,172.85,172.79,5.78]
[1717683124701,5.78,172.84,172.78,5.78]
[1717683125217,5.78,172.85,172.79,120.0]
[1717683125422,5.78,172.85,172.79,125.78]
[1717683125716,0.17,172.86,172.8,5.78]
[1717683125903,0.17,172.85,172.8,5.78]
[1717683126103,0.17,172.85,172.81,5.78]
[1717683126999,2.3106,172.85,172.79,120.0]
[1717683127323,47.3106,172.85,172.79,125.78]
[1717683127827,45.17,172.85,172.79,125.78]
[1717683128612,45.17,172.85,172.8,5.78]
[1717683128824,45.0,172.85,172.8,5.78]
[1717683129011,45.17,172.86,172.8,5.78]
[1717683129602,47.3104,172.86,172.8,5.78]
[1717683130211,45.17,172.86,172.8,5.78]
[1717683130612,47.3104,172.86,172.8,5.78]
[1717683130817,45.0,172.86,172.82,5.78]
[1717683131008,7.9201,172.89,172.83,5.78]
[1717683131208,0.17,172.88,172.83,5.78]
[1717683131412,2.1401,172.89,172.83,125.78]
[1717683131727,2.1401,172.89,172.84,5.78]
[1717683132837,45.0,172.89,172.84,5.78]
[1717683133325,45.0,172.89,172.85,125.78]
[1717683133518,45.0,172.89,172.85,120.0]
[1717683133826,38.9693,172.93,172.85,120.0]
[1717683133827,2.1397,172.92,172.86,5.78]
[1717683134426,2.1398,172.91,172.86,5.78]
[1717683135129,47.4797,172.92,172.87,5.78]
[1717683135308,45.0,172.92,172.87,125.78]
[1717683135502,47.1396,172.93,172.87,125.78]
[1717683135709,2.1394,172.95,172.87,125.78]
[1717683135921,2.1394,172.95,172.89,5.78]
[1717683136441,7.9194,172.95,172.89,5.78]
[1717683136616,5.78,172.94,172.88,5.78]
[1717683136821,7.9194,172.94,172.88,5.78]
[1717683137404,8.0894,172.95,172.89,5.78]
[1717683138522,45.0,172.94,172.89,5.78]
[1717683139326,50.78,172.94,172.88,5.78]
[1717683139529,52.9194,172.94,172.88,5.78]
[1717683139914,47.1394,172.94,172.87,125.78]
[1717683140237,5.78,172.93,172.87,125.78]
[1717683140533,45.0,172.92,172.87,125.78]
[1717683141032,45.0,172.92,172.88,5.78]
[1717683141216,45.0,172.93,172.88,5.78]
[1717683142129,45.0,172.93,172.81,6.5155]
[1717683142336,7.19973552,172.92,172.86,125.78]
[1717683142525,45.0,172.91,172.86,125.78]
[1717683146828,45.0,172.91,172.87,5.78]
[1717683147149,45.0,172.92,172.87,5.78]